fUST/lending_fUST_20260124
["ID","MTS","AMOUNT","RATE_DAILY","PERIOD"]
[403153757,1769209854340,-500.0,0.00022191,2]
[403153758,1769209854349,-520.66674984,0.00022191,2]
[403153759,1769209854358,-500.0,0.00022191,2]
[403153760,1769209854367,-500.0,0.00022191,2]
[403153761,1769209854377,-500.0,0.00022191,2]
[403153762,1769209854386,-500.0,0.00022191,2]
[403153763,1769209854395,-500.0,0.00022191,2]
[403153764,1769209854403,-500.0,0.00022191,2]
[403153765,1769209854412,-500.0,0.00022191,2]
[403153766,1769209854421,-500.0,0.00022191,2]
[403153767,1769209854431,-500.0,0.00022191,2]
[403153768,1769209854440,-500.0,0.00022191,2]
[403153769,1769209854452,-500.0,0.00022191,2]
[403153770,1769209854463,-727.04,0.00022191,2]
[403153771,1769209854472,-500.0,0.00022191,2]
[403153772,1769209854482,-500.0,0.00022191,2]
[403153773,1769209854492,-283.34030584,0.00022191,2]
[403153774,1769209854501,-500.0,0.00022191,2]
[403153775,1769209854511,-500.0,0.00022191,2]
[403153776,1769209854521,-500.0,0.00022191,2]
[403153777,1769209854530,-500.0,0.00022191,2]
[403153778,1769209854540,-151.0,0.00022191,2]
[403153779,1769209854550,-283.59567329,0.00022191,2]
[403153780,1769209854559,-500.0,0.00022191,2]
[403153781,1769209854568,-501.50005147,0.00022191,2]
[403153782,1769209854577,-500.0,0.00022191,2]
[403153783,1769209854587,-433.9500052,0.00022191,2]
[403153784,1769209854598,-282.59433654,0.00022191,2]
[403153785,1769209854608,-500.0,0.00022191,2]
[403153786,1769209854617,-500.0,0.00022191,2]
[403153787,1769209854626,-500.0,0.00022191,2]
[403153788,1769209854636,-500.0,0.00022191,2]
[403153789,1769209854646,-500.0,0.00022191,2]
[403153790,1769209854656,-500.0,0.00022191,2]
[403153791,1769209854666,-500.0,0.00022191,2]
[403153792,1769209854675,-500.0,0.00022191,2]
[403153793,1769209854685,-504.35,0.00022191,2]
[403153794,1769209854696,-500.0,0.00022191,2]
[403153795,1769209854706,-500.0,0.00022191,2]
[403153796,1769209854716,-500.0,0.00022191,2]
[403153797,1769209854725,-500.0,0.00022191,2]
[403153798,1769209854735,-500.0,0.00022191,2]
[403153799,1769209854744,-500.0,0.00022191,2]
[403153800,1769209854753,-500.0,0.00022191,2]
[403153801,1769209854763,-500.0,0.00022191,2]
[403153802,1769209854772,-500.0,0.00022191,2]
[403153803,1769209854785,-151.0,0.00022191,2]
[403153804,1769209854794,-500.0,0.00022191,2]
[403153805,1769209854803,-151.0,0.00022191,2]
[403153806,1769209854813,-544.29,0.00022191,2]
[403153807,1769209854822,-500.0,0.00022191,2]
[403153808,1769209854831,-500.0,0.00022191,2]
[403153809,1769209854840,-500.0,0.00022191,2]
[403153810,1769209854851,-500.0,0.00022191,2]
[403153811,1769209854860,-151.0,0.00022191,2]
[403153812,1769209854870,-500.0,0.00022191,2]
[403153813,1769209854879,-500.0,0.00022191,2]
[403153814,1769209854888,-500.0,0.00022191,2]
[403153815,1769209854897,-500.0,0.00022191,2]
[403153816,1769209854906,-500.0,0.00022191,2]
[403153817,1769209854915,-500.0,0.00022191,2]
[403153818,1769209854925,-500.0,0.00022191,2]
[403153819,1769209854934,-500.0,0.00022191,2]
[403153820,1769209854943,-500.0,0.00022191,2]
[403153821,1769209854952,-500.0,0.00022191,2]
[403153822,1769209854962,-500.0,0.00022191,2]
[403153823,1769209854971,-500.0,0.00022191,2]
[403153824,1769209854980,-532.3,0.00022191,2]
[403153825,1769209854990,-500.0,0.00022191,2]
[403153826,1769209854999,-500.0,0.00022191,2]
[403153827,1769209855010,-500.0,0.00022191,2]
[403153828,1769209855019,-500.0,0.00022191,2]
[403153829,1769209855029,-500.0,0.00022191,2]
[403153830,1769209855038,-500.0,0.00022191,2]
[403153831,1769209855048,-589.9,0.00022191,2]
[403153832,1769209855057,-500.0,0.00022191,2]
[403153833,1769209855066,-500.0,0.00022191,2]
[403153834,1769209855075,-500.0,0.00022191,2]
[403153835,1769209855084,-500.0,0.00022191,2]
[403153836,1769209855094,-500.0,0.00022191,2]
[403153837,1769209855104,-500.0,0.00022191,2]
[403153838,1769209855114,-500.0,0.00022191,2]
[403153839,1769209855123,-500.0,0.00022191,2]
[403153840,1769209855133,-500.0,0.00022191,2]
[403153841,1769209855142,-500.0,0.00022191,2]
[403153842,1769209855151,-500.0,0.00022191,2]
[403153843,1769209855160,-500.0,0.00022191,2]
[403153844,1769209855169,-500.0,0.00022191,2]
[403153845,1769209855178,-500.0,0.00022191,2]
[403153846,1769209855188,-500.0,0.00022191,2]
[403153847,1769209855197,-500.0,0.00022191,2]
[403153848,1769209855206,-500.0,0.00022191,2]
[403153849,1769209855215,-500.0,0.00022191,2]
[403153850,1769209855224,-500.0,0.00022191,2]
[403153851,1769209855234,-500.0,0.00022191,2]
[403153852,1769209855243,-500.0,0.00022191,2]
[403153853,1769209855252,-500.0,0.00022191,2]
[403153854,1769209855261,-500.0,0.00022191,2]
[403153855,1769209855271,-500.0,0.00022191,2]
[403153856,1769209855280,-500.0,0.00022191,2]
[403153857,1769209855290,-247.38781511,0.00022191,2]
[403153858,1769209855979,-500.0,0.00021917,2]
[403153859,1769209855988,-500.0,0.00021917,2]
[403153860,1769209855997,-252.61218489,0.00022191,2]
[403153861,1769209856007,-500.0,0.00022191,2]
[403153862,1769209856016,-49.42436334,0.00022191,2]
[403153863,1769210503839,150.0,0.00011839,2]
[403153881,1769211031839,-155.0,0.00014645,2]
[403153882,1769211031849,-200.95637873,0.00014645,2]
[403153883,1769211031858,-425.97873272,0.000152,2]
[403153884,1769211031868,-500.0,0.000154,2]
[403153885,1769211031877,-500.0,0.000154,7]
[403153886,1769211031886,-346.02,0.000154,7]
[403153887,1769211031895,-169.28501333,0.000154,2]
[403153888,1769211031904,-269.77820762,0.000154,2]
[403153889,1769211031913,-298.05784668,0.000154,2]
[403153890,1769211031923,-330.06628609,0.000154,2]
[403153891,1769211031933,-212.98936632,0.000154,2]
[403153892,1769211031942,-4144.59947993,0.000154,2]
[403153893,1769211031957,-1016.64101566,0.000154,2]
[403153894,1769211031983,-1125.97591378,0.000154,2]
[403153895,1769211032027,-1583.65522408,0.000154,2]
[403153896,1769211032036,-425.97873272,0.00015608,5]
[403153897,1769211032046,-255.55820493,0.00015707,2]
[403153923,1769211038025,-500.0,0.00015399,2]
[403153924,1769211038035,-302.03654823,0.00015399,2]
[403153925,1769211038045,-500.0,0.00015399,2]
[403153926,1769211038054,-500.0,0.00015399,2]
[403153927,1769211038064,-44.44179507,0.00015707,2]
[403153929,1769211038073,-300.0,0.00015707,2]
[403153931,1769211038082,-300.0,0.00015707,2]
[403153932,1769211038091,-300.0,0.00015707,2]
[403153933,1769211038101,-300.0,0.00015707,2]
[403153934,1769211038110,-300.0,0.00015707,2]
[403153935,1769211038119,-300.0,0.00015707,2]
[403153936,1769211038128,-300.0,0.00015707,2]
[403153937,1769211038138,-300.0,0.00015707,2]
[403153938,1769211038147,-300.0,0.00015707,2]
[403153939,1769211038156,-300.0,0.00015707,2]
[403153940,1769211038165,-300.0,0.00015707,2]
[403153941,1769211038175,-300.0,0.00015707,2]
[403153942,1769211038184,-300.0,0.00015707,2]
[403153943,1769211038193,-300.0,0.00015707,2]
[403153944,1769211038202,-425.97873272,0.00016016,9]
[403153945,1769211038211,-600.0,0.0001602,2]
[403153946,1769211038220,-425.97873272,0.00016423,13]
[403153947,1769211038229,-237.1285269,0.00016645,2]
[403153948,1769211038238,-425.97873272,0.00016831,16]
[403153949,1769211038247,-269.77820762,0.00017061,17]
[403153950,1769211038261,-425.97873272,0.00017239,20]
[403153951,1769211038271,-720.0,0.00017622,2]
[403153952,1769211038280,-425.97873272,0.00017647,24]
[403153953,1769211038289,-169.28501333,0.00017725,23]
[403153954,1769211038298,-425.97873272,0.00018055,28]
[403153955,1769211038307,-571.43807477,0.00018399,2]
[403153956,1769211038317,-221.64034877,0.00018399,2]
[403153957,1769211038328,-295.14911815,0.00018399,2]
[403153958,1769211038337,-9115.85790606,0.000184,2]
[403153959,1769211038346,-425.97873272,0.00018463,31]
[403153960,1769211038356,-273.30067507,0.00018645,2]
[403153961,1769211038365,-269.77820762,0.00018722,32]
[403153962,1769211038375,-425.97873272,0.0001887,35]
[403153963,1769211038384,-425.97873272,0.00019278,39]
[403153964,1769211038394,-864.0,0.00019384,2]
[403153965,1769211038404,-425.97873272,0.00019686,42]
[403153966,1769211038413,-169.28501333,0.00020051,45]
[403153967,1769211038423,-425.97873272,0.00020094,46]
[403153968,1769211038432,-652.940716,0.00020137,2]
[403153969,1769211038441,-192.52888106,0.0002022,7]
[403153970,1769211038450,-269.77820762,0.00020383,48]
[403153971,1769211038458,-425.97873272,0.00020502,50]
[403153972,1769211038467,-1390.65405233,0.0002061,2]
[403153973,1769211038477,-309.47282324,0.00020645,2]
[403153974,1769211038486,-1041.66666667,0.00020898,2]
[403153975,1769211038496,-256.72815407,0.000209,2]
[403153976,1769211038505,-425.97873272,0.0002091,54]
[403153977,1769211038515,-10525.38753873,0.0002099,2]
[403153978,1769211038526,-287.44,0.0002099,2]
[403153979,1769211038540,-941.49,0.0002099,2]
[403153980,1769211038551,-2149.64772755,0.0002099,2]
[403153981,1769211038562,-557.69832396,0.0002099,2]
[403153982,1769211038573,-1558.73117524,0.0002099,2]
[403153983,1769211038584,-729.41544042,0.0002099,2]
[403153993,1769211040338,-4544.32474989,0.0002099,2]
[403153995,1769211040349,-3312.85952668,0.0002099,2]
[403154330,1769211046059,-13181.69797329,0.0002099,2]
[403154331,1769211046069,-7386.93076629,0.00021,5]
[403154332,1769211046081,-1790.01611463,0.00021,5]
[403154333,1769211046092,-17.30540639,0.00021,5]
[403154334,1769211046101,-277.6007541,0.00021,2]
[403154335,1769211046111,-0.42354454,0.00021,10]
[403154336,1769211046122,-1563.29850405,0.00021,10]
[403154337,1769211046131,-9617.06192098,0.00021,2]
[403154344,1769212083346,178.74,0.00012,2]
[403154398,1769212232050,-183.9296092,0.00014646,2]
[403154399,1769212232060,-217.03693885,0.00016646,2]
[403154400,1769212232069,-250.14426851,0.00018646,2]
[403154401,1769212232078,-161.9913003,0.00019527,2]
[403154402,1769212232088,-288.0,0.00019903,2]
[403154403,1769212232098,-300.0,0.00019903,2]
[403154404,1769212232107,-300.0,0.00019903,2]
[403154405,1769212232117,-1200.0,0.00019903,2]
[403154406,1769212232126,-307.32519706,0.00019903,2]
[403154407,1769212232135,-235.5962618,0.00019903,2]
[403154408,1769212232145,-490.04312447,0.00019903,2]
[403154409,1769212232154,-78935.68817773,0.00019904,2]
[403154410,1769212232163,-1000.0,0.00019907,2]
[403154411,1769212232172,-170.39369,0.00020046,2]
[403154412,1769212232182,-161.99130029,0.00020131,5]
[403154414,1769212232192,-300.0,0.00020301,2]
[403154417,1769212232202,-300.0,0.00020301,2]
[403154419,1769212232212,-300.0,0.00020301,2]
[403154422,1769212232222,-300.0,0.00020301,2]
[403154424,1769212232232,-300.0,0.00020301,2]
[403154426,1769212232242,-300.0,0.00020301,2]
[403154428,1769212232252,-300.0,0.00020301,2]
[403154430,1769212232261,-300.0,0.00020301,2]
[403154432,1769212232270,-300.0,0.00020301,2]
[403154434,1769212232279,-300.0,0.00020301,2]
[403154436,1769212232289,-300.0,0.00020301,2]
[403154438,1769212232300,-300.0,0.00020301,2]
[403154440,1769212232309,-300.0,0.00020301,2]
[403154442,1769212232319,-300.0,0.00020301,2]
[403154444,1769212232328,-300.0,0.00020301,2]
[403154446,1769212232337,-600.0,0.00020301,2]
[403154449,1769212232347,-448.0000001,0.00020346,2]
[403154451,1769212232356,-283.25159816,0.00020646,2]
[403154452,1769212232367,-2003.02689483,0.00020699,2]
[403154453,1769212232376,-999.298191,0.00020699,2]
[403154454,1769212232386,-1986.28,0.0002089,10]
[403154455,1769212232395,-1655.24,0.0002089,10]
[403154456,1769212232404,-1379.36,0.0002089,10]
[403154457,1769212232413,-64065.25673509,0.000209,2]
[403154473,1769212238189,-1522.75,0.00020899,2]
[403154474,1769212238199,-8251.07003117,0.000209,2]
[403154475,1769212238330,-4809.12174744,0.000209,2]
[403154555,1769212240407,-3905.1431815,0.000209,2]
[403154557,1769212240418,-5450.0,0.000209,2]
[403154985,1769212246209,-2432.70658444,0.000209,2]
[403154986,1769212246222,-5072.59424847,0.000209,2]
[403154987,1769212246231,-1041.66666667,0.00020935,2]
[403154988,1769212246241,-1149.47,0.0002098,10]
[403154989,1769212246251,-500.0,0.00020989,2]
[403154990,1769212246260,-500.0,0.00020989,3]
[403154991,1769212246270,-500.0,0.00020989,4]
[403154992,1769212246280,-500.0,0.00020989,5]
[403154993,1769212246290,-5520.63484912,0.0002099,2]
[403155002,1769212949133,150.0,0.00011342,2]
[403155023,1769213432200,-150.0,0.00013061,2]
[403155025,1769213432212,-168.65908822,0.00013108,2]
[403155027,1769213432223,-500.0,0.00013154,2]
[403155029,1769213432232,-500.0,0.00013154,2]
[403155031,1769213432242,-500.0,0.00013154,2]
[403155033,1769213432252,-300.0,0.00013399,2]
[403155035,1769213432262,-300.0,0.00013399,2]
[403155037,1769213432271,-1200.0,0.0001367,2]
[403155039,1769213432281,-300.0,0.00013671,2]
[403155041,1769213432291,-300.0,0.00013671,2]
[403155043,1769213432301,-300.0,0.00013671,2]
[403155045,1769213432310,-300.0,0.00013671,2]
[403155046,1769213432320,-300.0,0.00013671,2]
[403155047,1769213432330,-300.0,0.00013671,2]
[403155048,1769213432340,-300.0,0.00013671,2]
[403155049,1769213432349,-300.0,0.00013671,2]
[403155050,1769213432359,-300.0,0.00013671,2]
[403155052,1769213432369,-300.0,0.00013671,2]
[403155054,1769213432378,-300.0,0.00013671,2]
[403155056,1769213432388,-300.0,0.00013671,2]
[403155058,1769213432398,-300.0,0.00013671,2]
[403155060,1769213432408,-300.0,0.00013671,2]
[403155062,1769213432417,-300.0,0.00013671,2]
[403155064,1769213432428,-150.0,0.00014248,2]
[403155066,1769213432438,-199.0177241,0.00015108,2]
[403155068,1769213432447,-155.0,0.00015346,2]
[403155070,1769213432457,-150.0,0.00015435,2]
[403155072,1769213432466,-444.038033,0.00016179,2]
[403155074,1769213432477,-150.0,0.00016623,2]
[403155076,1769213432487,-203.49952849,0.00017061,2]
[403155078,1769213432496,-500.0,0.00017061,2]
[403155080,1769213432506,-500.0,0.00017061,2]
[403155082,1769213432516,-500.0,0.00017061,2]
[403155084,1769213432528,-500.0,0.00017061,2]
[403155086,1769213432538,-500.0,0.00017061,2]
[403155088,1769213432547,-500.0,0.00017061,2]
[403155090,1769213432557,-500.0,0.00017061,2]
[403155092,1769213432566,-500.0,0.00017061,2]
[403155094,1769213432576,-500.0,0.00017061,2]
[403155096,1769213432585,-500.0,0.00017061,2]
[403155098,1769213432595,-500.0,0.00017061,2]
[403155099,1769213432604,-500.0,0.00017061,2]
[403155101,1769213432614,-500.0,0.00017061,2]
[403155103,1769213432624,-500.0,0.00017061,2]
[403155104,1769213432634,-500.0,0.00017061,2]
[403155105,1769213432643,-156.75250949,0.00017061,2]
[403155106,1769213432655,-314.01257435,0.00017061,2]
[403155107,1769213432664,-185.98742565,0.00017064,2]
[403155127,1769213438955,-414.01257435,0.00017064,2]
[403155128,1769213438964,-229.37635997,0.00017108,2]
[403155129,1769213438974,-150.0,0.0001781,2]
[403155130,1769213438983,-770.11552424,0.00017822,2]
[403155131,1769213438993,-720.0,0.0001877,2]
[403155132,1769213439002,-259.73499585,0.00019108,2]
[403155133,1769213439011,-1041.66666667,0.00019794,2]
[403155134,1769213439021,-378.3319894,0.00019841,2]
[403155135,1769213439030,-378.3319894,0.00019841,2]
[403155136,1769213439038,-240.11073195,0.00020025,2]
[403155137,1769213439048,-215.12763794,0.00020025,2]
[403155138,1769213439057,-406.05571762,0.00020025,2]
[403155139,1769213439067,-340.93656021,0.00020027,2]
[403155140,1769213439076,-613.68580838,0.00020027,2]
[403155141,1769213439085,-1089.90599568,0.00020027,2]
[403155142,1769213439094,-378.3319894,0.00020041,2]
[403155143,1769213439103,-378.3319894,0.00020041,2]
[403155144,1769213439112,-378.3319894,0.00020041,2]
[403155145,1769213439122,-724.3934156,0.00020473,2]
[403155146,1769213439131,-795.37090869,0.00020647,2]
[403155147,1769213439143,-68.62909131,0.00020647,2]
[403155148,1769213439152,-378.3319894,0.00020655,2]
[403155149,1769213439161,-378.3319894,0.00020655,2]
[403155150,1769213439171,-378.3319894,0.00020655,2]
[403155151,1769213439180,-378.3319894,0.00020655,2]
[403155152,1769213439190,-378.3319894,0.00020655,2]
[403155153,1769213439199,-378.3319894,0.00020655,2]
[403155154,1769213439208,-576.1668436,0.00020655,2]
[403155155,1769213439218,-500.0,0.00020899,2]
[403155156,1769213439227,-500.0,0.00020899,3]
[403155157,1769213439236,-500.0,0.00020899,4]
[403155158,1769213439245,-500.0,0.00020899,5]
[403155159,1769213439254,-500.0,0.00020899,6]
[403155160,1769213439264,-1459.3,0.00020939,2]
[403155161,1769213439274,-957.89,0.0002097,10]
[403155162,1769213439283,-42617.37007455,0.0002098,2]
[403155163,1769213439295,-355.1827808,0.0002098,2]
[403155217,1769213440625,-1095.21043255,0.0002098,2]
[403155220,1769213440639,-262.0624995,0.0002098,2]
[403155222,1769213440650,-833.04069249,0.0002098,2]
[403155517,1769213446438,-1378.62418136,0.0002098,2]
[403155518,1769213446453,-419.18467264,0.0002098,2]
[403155519,1769213446464,-1463.83854795,0.0002098,2]
[403155520,1769213446484,-30824.4930322,0.0002098,2]
[403155521,1769213446496,-368.389,0.0002098,2]
[403155592,1769214632463,-300.0,0.00013262,2]
[403155594,1769214632473,-500.0,0.00013263,2]
[403155596,1769214632483,-500.0,0.00013263,2]
[403155597,1769214632492,-150.0,0.00013263,2]
[403155598,1769214632501,-150.0,0.00013263,2]
[403155599,1769214632510,-180.81716895,0.00013263,2]
[403155600,1769214632519,-500.0,0.00013263,2]
[403155602,1769214632528,-213.14839871,0.00013263,2]
[403155604,1769214632537,-500.0,0.00013272,2]
[403155606,1769214632546,-500.0,0.00013272,2]
[403155608,1769214632555,-182.71707325,0.00013272,2]
[403155610,1769214632564,-500.0,0.00013272,2]
[403155611,1769214632573,-176.59128667,0.00013272,2]
[403155612,1769214632582,-500.0,0.00013273,2]
[403155613,1769214632591,-500.0,0.00013273,2]
[403155615,1769214632601,-440.24648614,0.00013273,2]
[403155617,1769214632611,-500.0,0.00013273,2]
[403155619,1769214632620,-500.0,0.00013273,2]
[403155621,1769214632629,-500.0,0.00013273,2]
[403155623,1769214632638,-500.0,0.00013273,2]
[403155625,1769214632647,-500.0,0.00013273,2]
[403155626,1769214632656,-500.0,0.00013273,2]
[403155627,1769214632664,-500.0,0.00013273,2]
[403155628,1769214632673,-500.0,0.00013273,2]
[403155629,1769214632683,-500.0,0.00013273,2]
[403155630,1769214632692,-500.0,0.00013273,2]
[403155631,1769214632702,-437.52261295,0.00013273,2]
[403155632,1769214632713,-62.47738705,0.00013273,2]
[403155633,1769214632722,-500.0,0.00013273,2]
[403155634,1769214632731,-500.0,0.00013273,2]
[403155635,1769214632740,-500.0,0.00013273,2]
[403155636,1769214632750,-500.0,0.00013273,2]
[403155637,1769214632759,-158.06423794,0.00013273,2]
[403155638,1769214632768,-500.0,0.00013273,2]
[403155639,1769214632908,-524.62460419,0.00013273,2]
[403155640,1769214632918,-500.0,0.00013273,2]
[403155641,1769214632928,-500.0,0.00013273,2]
[403155642,1769214632937,-500.0,0.00013273,2]
[403155643,1769214632946,-186.59987911,0.00013273,2]
[403155644,1769214632955,-214.90304718,0.00013273,2]
[403155645,1769214632964,-500.0,0.00013273,2]
[403155646,1769214632973,-500.66101042,0.00013273,2]
[403155647,1769214632983,-500.0,0.00013273,2]
[403155648,1769214632992,-500.0,0.00013273,2]
[403155649,1769214633001,-500.0,0.00013273,2]
[403155650,1769214633010,-500.0,0.00013273,2]
[403155651,1769214633019,-211.0965396,0.00013273,2]
[403155652,1769214633028,-500.0,0.00013273,2]
[403155653,1769214633037,-500.0,0.000134,2]
[403155654,1769214633047,-550.0,0.000134,2]
[403155655,1769214633056,-150.0,0.000134,2]
[403155656,1769214633065,-150.0,0.000134,2]
[403155657,1769214633075,-500.0,0.000134,2]
[403155658,1769214633084,-245.49810125,0.00013423,2]
[403155659,1769214633093,-500.0,0.00013424,2]
[403155660,1769214633103,-500.0,0.00013424,2]
[403155661,1769214633112,-500.0,0.00013424,2]
[403155662,1769214633121,-500.0,0.00013424,2]
[403155663,1769214633130,-500.0,0.00013424,2]
[403155664,1769214633139,-500.0,0.00013424,2]
[403155665,1769214633149,-200.14072209,0.00013424,2]
[403155666,1769214633158,-500.0,0.00013424,2]
[403155667,1769214633167,-500.0,0.00013537,2]
[403155668,1769214633177,-150.0,0.00013537,2]
[403155669,1769214633187,-150.0,0.00013537,2]
[403155670,1769214633196,-500.0,0.00013537,2]
[403155671,1769214633206,-300.0,0.00013537,2]
[403155672,1769214633216,-300.0,0.00013537,2]
[403155673,1769214633225,-300.0,0.00013537,2]
[403155674,1769214633236,-300.0,0.00013537,2]
[403155675,1769214633245,-300.0,0.00013537,2]
[403155676,1769214633254,-17.45369995,0.00013537,2]
[403155680,1769214638546,-282.54630005,0.00013537,2]
[403155681,1769214638556,-300.0,0.00013537,2]
[403155682,1769214638565,-300.0,0.00013537,2]
[403155683,1769214638575,-300.0,0.00013537,2]
[403155684,1769214638584,-300.0,0.00013537,2]
[403155685,1769214638594,-300.0,0.00013537,2]
[403155686,1769214638604,-300.0,0.00013537,2]
[403155688,1769214638613,-217.33157958,0.00013537,2]
[403155690,1769214638625,-82.66842042,0.00013537,2]
[403155691,1769214638635,-300.0,0.00013537,2]
[403155693,1769214638645,-300.0,0.00013537,2]
[403155695,1769214638654,-500.0,0.00013561,2]
[403155696,1769214638664,-500.0,0.00013561,2]
[403155697,1769214638673,-500.0,0.00013561,2]
[403155698,1769214638683,-500.0,0.00013561,2]
[403155699,1769214638692,-500.0,0.00013561,2]
[403155700,1769214638702,-500.0,0.00013561,2]
[403155701,1769214638711,-398.51708004,0.00013673,2]
[403155702,1769214638720,-300.0,0.00013673,2]
[403155703,1769214638730,-400.0,0.00013674,2]
[403155704,1769214638739,-250.0,0.00013674,2]
[403155705,1769214638748,-550.0,0.00013674,2]
[403155706,1769214638758,-506.89114519,0.00013698,2]
[403155707,1769214638767,-388.65808548,0.00013698,2]
[403155708,1769214638776,-500.0,0.00013698,2]
[403155709,1769214638786,-500.0,0.00013698,2]
[403155710,1769214638795,-500.0,0.00013698,2]
[403155711,1769214638804,-500.0,0.00013698,2]
[403155712,1769214638813,-525.15028265,0.00013698,2]
[403155713,1769214638826,-568.17222881,0.00013698,2]
[403155714,1769214638836,-3133.42,0.00013698,2]
[403155715,1769214638845,-3133.42,0.00013698,2]
[403155716,1769214638855,-1976.39,0.00013698,2]
[403155717,1769214638867,-500.0,0.00013698,2]
[403155718,1769214638876,-500.0,0.00013698,2]
[403155719,1769214638886,-500.0,0.00013698,2]
[403155720,1769214638896,-500.0,0.00013698,2]
[403155721,1769214638905,-500.0,0.00013698,2]
[403155722,1769214638914,-500.0,0.00013698,2]
[403155723,1769214638924,-500.0,0.00013698,2]
[403155724,1769214638933,-500.0,0.00013698,2]
[403155725,1769214638943,-500.0,0.00013698,2]
[403155726,1769214638952,-1000.0,0.00013699,2]
[403155727,1769214638961,-500.0,0.00013699,2]
[403155728,1769214638971,-500.0,0.00013699,2]
[403155729,1769214638980,-500.0,0.00013699,2]
[403155730,1769214638989,-500.0,0.00013699,2]
[403155731,1769214638998,-500.0,0.00013699,2]
[403155732,1769214639008,-186.53198003,0.00013699,2]
[403155733,1769214639017,-313.78216061,0.00013699,2]
[403155734,1769214639027,-500.0,0.00013699,2]
[403155735,1769214639037,-500.0,0.00013699,2]
[403155736,1769214639046,-500.0,0.00013699,2]
[403155737,1769214639055,-500.0,0.00013699,2]
[403155738,1769214639064,-500.0,0.00013699,2]
[403155739,1769214639073,-500.0,0.00013699,2]
[403155740,1769214639083,-500.0,0.00013699,2]
[403155741,1769214639092,-500.0,0.00013699,2]
[403155742,1769214639101,-238.3521889,0.00013699,2]
[403155743,1769214639110,-158.30385946,0.00013699,2]
[403155744,1769214639119,-525.20373292,0.00013699,2]
[403155745,1769214639129,-158.09923285,0.00013699,2]
[403155746,1769214639139,-160.10500167,0.00013699,2]
[403155747,1769214639148,-198.32383648,0.00013699,2]
[403155748,1769214639157,-238.0443177,0.00013699,2]
[403155749,1769214639166,-500.0,0.00013699,2]
[403155750,1769214639176,-155.09450084,0.00013699,2]
[403155751,1769214639187,-500.0,0.00013699,2]
[403155752,1769214639196,-500.0,0.00013699,2]
[403155753,1769214639206,-500.0,0.00013699,2]
[403155754,1769214639216,-500.0,0.00013699,2]
[403155755,1769214639225,-500.0,0.00013699,2]
[403155756,1769214639234,-500.0,0.00013699,2]
[403155757,1769214639242,-500.0,0.00013699,2]
[403155758,1769214639344,-251.6077415,0.00013699,2]
[403155759,1769214639374,-250.21845886,0.00013699,2]
[403155760,1769214639383,-500.0,0.00013699,2]
[403155761,1769214639392,-500.0,0.00013699,2]
[403155762,1769214639401,-622.93942038,0.00013699,2]
[403155763,1769214639410,-500.0,0.00013699,2]
[403155764,1769214639419,-160.10144936,0.00013699,2]
[403155765,1769214639427,-502.61209366,0.00013699,2]
[403155766,1769214639436,-320.18584344,0.00013699,2]
[403155767,1769214639446,-500.0,0.00013699,2]
[403155768,1769214639455,-500.0,0.00013699,2]
[403155769,1769214639463,-500.0,0.00013699,2]
[403155770,1769214639472,-500.0,0.00013699,2]